bitfinex/quotes_BTCUSD_20250420
["timestamp","ask_amount","ask_price","bid_price","bid_amount"]
[1745113439647,0.15678551,85135.0,85134.0,0.34090097]
[1745113441848,0.56554992,85135.0,85134.0,0.34090097]
[1745113442052,0.52821232,85135.0,85134.0,0.34090097]
[1745113442212,0.56550741,85135.0,85134.0,0.34090097]
[1745113445153,0.56548573,85135.0,85134.0,0.34090097]
[1745113445921,0.44603782,85135.0,85134.0,0.34090097]
[1745113449613,0.44603782,85135.0,85134.0,0.34090097]
[1745113464199,0.44603782,85135.0,85134.0,0.57582473]
[1745113464418,0.56648573,85135.0,85134.0,0.00090097]
[1745113464635,0.61348573,85135.0,85134.0,0.00090097]
[1745113468012,0.65858573,85135.0,85134.0,0.00090097]
[1745113470240,0.65858573,85135.0,85134.0,0.23582473]
[1745113470439,0.56548573,85135.0,85134.0,0.57582473]
[1745113477832,0.56526958,85135.0,85134.0,0.57582473]
[1745113484258,0.56507545,85135.0,85134.0,0.57582473]
[1745113486492,0.56507545,85135.0,85134.0,0.34090097]
[1745113486633,0.61457545,85135.0,85134.0,0.34090097]
[1745113486809,0.61457545,85135.0,85134.0,0.00090097]
[1745113488160,0.61457545,85135.0,85134.0,0.23582473]
[1745113490262,0.61442635,85135.0,85134.0,0.23582473]
[1745113490731,0.56492635,85135.0,85134.0,0.23582473]
[1745113495296,0.56492635,85135.0,85134.0,0.23612073]
[1745113496531,0.56472922,85135.0,85134.0,0.00119697]
[1745113501452,0.56472922,85135.0,85134.0,0.34119697]
[1745113501896,0.56472922,85135.0,85134.0,0.34219697]
[1745113502563,0.44528131,85135.0,85134.0,0.34219697]
[1745113516144,0.44528131,85135.0,85134.0,0.34119697]
[1745113516382,0.44528131,85135.0,85134.0,0.38949697]
[1745113516592,0.44528131,85135.0,85134.0,0.42163098]
[1745113517358,0.38663506,85135.0,85134.0,0.42163098]
[1745113517556,0.32798881,85135.0,85134.0,0.38949697]
[1745113517985,0.03727341,85135.0,85134.0,0.38949697]
[1745113518288,0.23206915,85155.0,85152.0,0.3517437]
[1745113518486,0.11944791,85154.0,85152.0,0.3517437]
[1745113518692,0.15049991,85154.0,85152.0,0.3517437]
[1745113519226,0.15049991,85154.0,85153.0,0.23487134]
[1745113519429,0.11944791,85154.0,85153.0,0.23487134]
[1745113520310,0.11944791,85154.0,85153.0,0.57487134]
[1745113520523,0.23206915,85155.0,85154.0,0.34]
[1745113522909,0.35151706,85155.0,85154.0,0.57486859]
[1745113523355,0.38264764,85155.0,85154.0,0.57486859]
[1745113527707,0.26319973,85155.0,85154.0,0.57486859]
[1745113527913,0.26319973,85155.0,85154.0,0.57586859]
[1745113528134,0.26319973,85155.0,85154.0,0.57486859]
[1745113529202,0.2630016,85155.0,85154.0,0.57486859]
[1745113529709,0.03113058,85155.0,85154.0,0.57486859]
[1745113530120,0.23187102,85166.0,85165.0,0.23483825]
[1745113530328,0.35131893,85166.0,85165.0,0.23483825]
[1745113530526,0.38257381,85166.0,85165.0,0.23483825]
[1745113530752,0.38357381,85166.0,85165.0,0.23483825]
[1745113530957,0.43047381,85166.0,85165.0,0.23483825]
[1745113531389,0.43151902,85166.0,85165.0,0.23483825]
[1745113532952,0.43151902,85166.0,85165.0,0.24653203]
[1745113533777,0.44326079,85166.0,85163.0,0.23484165]
[1745113533990,0.11944791,85165.0,85163.0,0.24658383]
[1745113534208,0.11944791,85165.0,85152.0,0.23487136]
[1745113534209,0.23485302,85160.0,85153.0,0.24668125]
[1745113534432,0.0476,85158.0,85153.0,0.25842481]
[1745113534668,0.04810275,85157.0,85153.0,0.24661352]
[1745113534876,0.11944791,85156.0,85153.0,0.24661352]
[1745113535141,0.11944791,85156.0,85154.0,0.23486694]
[1745113535324,0.03608887,85155.0,85154.0,0.23486694]
[1745113535556,0.15553678,85155.0,85154.0,0.23486694]
[1745113535781,0.3884078,85155.0,85154.0,0.23486694]
[1745113542061,0.3874078,85155.0,85154.0,0.23486694]
[1745113542463,0.3884078,85155.0,85153.0,0.35150226]
[1745113542675,0.11944791,85154.0,85153.0,0.35150226]
[1745113543064,0.15572309,85154.0,85153.0,0.58637119]
[1745113547337,0.38759411,85154.0,85153.0,0.58637119]
[1745113547859,0.38739397,85154.0,85153.0,0.58637119]
[1745113562219,0.38739397,85154.0,85153.0,0.01150226]
[1745113562449,0.38739397,85154.0,85142.0,0.23490164]
[1745113562450,0.23489338,85146.0,85142.0,0.24664516]
[1745113562679,0.15566945,85145.0,85142.0,0.24664516]
[1745113563094,0.15566945,85145.0,85139.0,0.37745326]
[1745113563095,0.049,85143.0,85139.0,0.1308]
[1745113563405,0.11944791,85142.0,85141.0,0.2349022]
[1745113563660,0.15566945,85142.0,85141.0,0.2349022]
[1745113564461,0.15566945,85142.0,85140.0,0.24665053]
[1745113564697,0.15566945,85142.0,85140.0,0.2584891]
[1745113567818,0.23187102,85141.0,85140.0,0.2584891]
[1745113568057,0.35131893,85141.0,85140.0,0.2584891]
[1745113568504,0.38754047,85141.0,85140.0,0.2584891]
[1745113570834,0.38738937,85141.0,85140.0,0.2584891]
[1745113572509,0.38738937,85141.0,85140.0,0.01183857]
[1745113572935,0.38738937,85141.0,85139.0,0.57490724]
[1745113573157,0.26794146,85141.0,85140.0,0.01159515]
[1745113573382,0.38738937,85141.0,85139.0,0.57490724]
[1745113573600,0.11944791,85140.0,85139.0,0.57490724]
[1745113573726,0.35116783,85140.0,85139.0,0.57490724]
[1745113573918,0.38735001,85140.0,85139.0,0.57490724]
[1745113574442,0.2679021,85140.0,85139.0,0.57490724]
[1745113574660,0.2679021,85140.0,85139.0,0.58638839]
[1745113574874,0.26794729,85140.0,85139.0,0.58638839]
[1745113575582,0.26770012,85140.0,85139.0,0.58738839]
[1745113577117,0.26770012,85140.0,85139.0,0.58638839]
[1745113577882,0.26770012,85140.0,85139.0,0.58738839]
[1745113578088,0.26770012,85140.0,85139.0,0.58638839]
[1745113582024,0.26770012,85140.0,85139.0,0.58738839]
[1745113585582,0.03622737,85140.0,85139.0,0.58738839]
[1745113586013,4.519e-05,85140.0,85139.0,0.58738839]
[1745113591107,4.519e-05,85140.0,85139.0,0.58638839]
[1745113617128,0.23147275,85148.0,85147.0,0.57488789]
[1745113617392,0.35092066,85148.0,85147.0,0.57488789]
[1745113617589,0.38712058,85148.0,85147.0,0.57488789]
[1745113622582,0.38696547,85148.0,85147.0,0.57488789]
[1745113628833,0.38675033,85148.0,85147.0,0.57488789]
[1745113635164,0.3865532,85148.0,85147.0,0.57488789]
[1745113636875,0.4319532,85148.0,85142.0,0.01174508]
[1745113637082,0.11944791,85147.0,85144.0,0.0117448]
[1745113637302,0.11944791,85147.0,85146.0,0.34]
[1745113638396,0.35035328,85147.0,85146.0,0.34]
[1745113639777,0.38658381,85147.0,85146.0,0.34]
[1745113652536,0.38658381,85147.0,85144.0,0.3517448]
[1745113653046,0.38658381,85147.0,85146.0,0.34]
[1745113656505,0.38658381,85147.0,85145.0,0.34]
[1745113657149,0.23489065,85146.0,85139.0,0.01148115]
[1745113657351,0.01174494,85143.0,85139.0,0.58665426]
[1745113657555,0.11944791,85142.0,85139.0,0.58665426]
[1745113657710,0.03620275,85141.0,85139.0,0.58665426]
[1745113658090,0.11944791,85140.0,85139.0,0.58665426]
[1745113658339,0.11944791,85140.0,85139.0,0.59823236]
[1745113658763,0.15565066,85140.0,85139.0,0.59823236]
[1745113659858,0.11944791,85140.0,85139.0,0.59823236]
[1745113661794,0.35035328,85140.0,85139.0,0.59823236]
[1745113662007,0.38655603,85140.0,85139.0,0.59823236]
[1745113666511,0.38638591,85140.0,85139.0,0.59823236]
[1745113672775,0.38616676,85140.0,85139.0,0.59823236]
[1745113697534,0.38595061,85140.0,85139.0,0.59823236]
[1745113703750,0.38574447,85140.0,85139.0,0.59823236]
[1745113706044,0.38574447,85140.0,85139.0,0.3515781]
[1745113706279,0.48064447,85140.0,85139.0,0.0115781]
[1745113706503,0.48064447,85140.0,85134.0,0.0011386]
[1745113706504,0.234921,85135.0,85134.0,0.0011386]
[1745113706737,0.63037428,85135.0,85134.0,0.0011386]
[1745113706976,0.71635191,85135.0,85134.0,0.0011386]
[1745113707194,0.73089276,85135.0,85134.0,0.0011386]
[1745113711089,0.72989276,85135.0,85134.0,0.0011386]
[1745113711288,0.73089276,85135.0,85134.0,0.0011386]
[1745113711589,0.24946737,85133.0,85132.0,0.0008426]
[1745113711765,0.45442016,85133.0,85132.0,0.0008426]
[1745113711962,0.45542016,85133.0,85132.0,0.0008426]
[1745113712171,0.57486807,85133.0,85132.0,0.0008426]
[1745113717609,0.80463484,85133.0,85132.0,0.0008426]
[1745113718692,0.68518693,85133.0,85132.0,0.0008426]
[1745113725448,0.68490574,85133.0,85132.0,0.0008426]
[1745113737057,0.68390574,85133.0,85132.0,0.0008426]
[1745113744154,0.68367058,85133.0,85132.0,0.0008426]
[1745113750912,0.63407058,85133.0,85132.0,0.0008426]
[1745113759542,0.63385043,85133.0,85132.0,0.0008426]
[1745113763953,0.38511956,85133.0,85132.0,0.0008426]
[1745113764177,0.38511956,85133.0,85132.0,0.0018426]
[1745113764633,0.38511956,85133.0,85132.0,0.0008426]
[1745113765069,0.44686041,85133.0,85132.0,0.0008426]
[1745113765958,0.38511956,85133.0,85132.0,0.0008426]
[1745113782431,0.37321873,85133.0,85132.0,0.0008426]
[1745113782588,0.32297356,85133.0,85132.0,0.0008426]
[1745113809856,0.32281245,85133.0,85132.0,0.0008426]
[1745113814587,0.32281245,85133.0,85132.0,0.23577188]
[1745113815047,0.32281245,85133.0,85132.0,0.28387188]
[1745113816863,0.32281245,85133.0,85132.0,0.28487188]
[1745113817018,0.32281245,85133.0,85132.0,0.28387188]
[1745113819162,0.32257529,85133.0,85132.0,0.28387188]
[1745113819330,0.32257529,85133.0,85132.0,0.23577188]
[1745113831523,0.32242319,85133.0,85132.0,0.23577188]
[1745113832876,0.32242319,85133.0,85132.0,0.57677188]
[1745113833410,0.26567165,85133.0,85132.0,0.57677188]
[1745113833689,0.26567165,85133.0,85132.0,0.62287188]
[1745113834847,0.03590488,85133.0,85132.0,0.62287188]
[1745113835069,0.22976677,85146.0,85145.0,0.23489341]
[1745113835270,0.38507827,85146.0,85145.0,0.23489341]
[1745113837036,0.38507827,85146.0,85145.0,0.24688572]
[1745113844107,0.3848311,85146.0,85145.0,0.24688572]
[1745113850252,0.384681,85146.0,85145.0,0.24688572]
[1745113855658,0.384681,85146.0,85145.0,0.01199231]
[1745113856094,0.384681,85146.0,85144.0,0.23489613]
[1745113856291,0.11944791,85145.0,85144.0,0.23489613]
[1745113856448,0.11944791,85145.0,85144.0,0.2465972]
[1745113856740,0.15545872,85145.0,85144.0,0.2465972]
[1745113860383,0.15545872,85145.0,85144.0,0.01170107]
[1745113860818,0.15545872,85145.0,85143.0,0.01174494]
[1745113861012,0.15545872,85145.0,85144.0,0.01187655]
[1745113861139,0.15545872,85145.0,85143.0,0.24664118]
[1745113862137,0.15545872,85145.0,85143.0,0.25832851]
[1745113862525,0.39035354,85145.0,85143.0,0.01168733]
[1745113862778,0.24664699,85142.0,85139.0,0.34]
[1745113862947,0.11944791,85141.0,85139.0,0.34]
[1745113863120,0.03601087,85140.0,85139.0,0.35190359]
[1745113863299,0.15545878,85140.0,85139.0,0.35190359]
[1745113865047,0.15545878,85140.0,85134.0,0.01174618]
[1745113865048,0.01174563,85138.0,85134.0,0.01174618]
[1745113865266,0.11944791,85137.0,85134.0,0.24666839]
[1745113865700,0.03601087,85136.0,85134.0,0.24666839]
[1745113865957,0.11944791,85135.0,85134.0,0.24666839]
[1745113866106,0.15545878,85135.0,85134.0,0.24666839]
[1745113866785,0.15545878,85135.0,85134.0,0.25835337]
[1745113867568,0.11944791,85135.0,85134.0,0.25835337]
[1745113868551,0.11944791,85135.0,85134.0,0.25935337]
[1745113872076,0.11944791,85135.0,85134.0,0.25835337]
[1745113873044,0.01174439,85147.0,85142.0,0.24664512]
[1745113873258,0.11944791,85145.0,85142.0,0.24664512]
[1745113873462,0.15544387,85145.0,85142.0,0.24664512]
[1745113875606,0.16718854,85145.0,85142.0,0.01174508]
[1745113875784,0.40208291,85145.0,85142.0,0.01174508]
[1745113877915,0.0117448,85144.0,85140.0,0.24665091]
[1745113878093,0.11944791,85143.0,85140.0,0.24665091]
[1745113878477,0.0359975,85142.0,85140.0,0.24665091]
[1745113878676,0.11944791,85141.0,85140.0,0.24665091]
[1745113879106,0.15544596,85141.0,85140.0,0.63445091]
[1745113879277,0.03599805,85141.0,85140.0,0.63545091]
[1745113879802,0.0484,85160.0,85156.0,0.01174315]
[1745113880004,0.11944791,85159.0,85157.0,0.24660332]
[1745113883996,0.11944791,85159.0,85158.0,0.34]
[1745113884235,6.903e-05,85160.0,85157.0,0.24660332]
[1745113884236,6.903e-05,85160.0,85159.0,0.5748548]
[1745113894336,6.903e-05,85160.0,85159.0,0.6209548]
[1745113904352,6.903e-05,85160.0,85159.0,0.5758548]
[1745113908168,6.903e-05,85160.0,85159.0,0.5748548]
[1745113908589,0.03641607,85160.0,85159.0,0.5748548]
[1745113908794,6.903e-05,85160.0,85159.0,0.5748548]
[1745113919534,6.903e-05,85160.0,85159.0,0.6248548]
[1745113924773,6.903e-05,85160.0,85159.0,0.65703534]
[1745113924992,0.0004214,85168.0,85167.0,0.62473274]
[1745113924993,0.00038141,85168.0,85167.0,0.62473274]
[1745113925403,0.00038141,85168.0,85167.0,0.62573274]
[1745113934354,0.09407614,85188.0,85167.0,0.62573274]
[1745113934355,0.048,85198.0,85183.0,0.57478863]
[1745113936652,0.048,85198.0,85183.0,0.58625116]
[1745113940338,0.03108,85184.0,85183.0,0.58625116]
[1745113943519,0.15052791,85184.0,85183.0,0.35146253]
[1745113943731,0.19922791,85184.0,85183.0,0.34]
[1745113943939,0.19922791,85184.0,85180.0,0.2465359]
[1745113943940,0.19893137,85184.0,85180.0,0.2465359]
[1745113944078,0.21684791,85183.0,85180.0,0.2465359]
[1745113944523,0.03661112,85182.0,85180.0,0.2465359]
[1745113944750,0.11944791,85181.0,85180.0,0.2465359]
[1745113945207,0.15705903,85181.0,85180.0,0.2465359]
[1745113948162,0.15605903,85181.0,85180.0,0.2465359]
[1745113950961,0.15605903,85181.0,85179.0,0.34]
[1745113951406,0.29923775,85180.0,85179.0,0.34]
[1745113951588,0.41868566,85180.0,85179.0,0.34]
[1745113951792,0.41968566,85180.0,85179.0,0.34]
[1745113951974,0.41968566,85180.0,85173.0,0.3635964]
[1745113951975,0.24654352,85178.0,85173.0,0.3635964]
[1745113952181,0.24654352,85178.0,85175.0,0.34]
[1745113952182,0.11944791,85177.0,85175.0,0.34]
[1745113952619,0.03661112,85176.0,85175.0,0.34]
[1745113952817,0.15605903,85176.0,85175.0,0.34]
[1745113953021,0.15705903,85176.0,85175.0,0.34]
[1745113953969,0.25625903,85176.0,85175.0,0.34]
[1745113954295,0.01174163,85167.0,85161.0,0.01174246]
[1745113954519,0.0473,85164.0,85163.0,0.34]
[1745113954754,0.16674791,85164.0,85163.0,0.34]
[1745113955431,0.16674791,85164.0,85163.0,0.3517346]
[1745113956824,0.20319463,85164.0,85163.0,0.3517346]
[1745113957023,0.15589463,85164.0,85163.0,0.3517346]
[1745113957224,0.11944791,85164.0,85163.0,0.3517346]
[1745113964349,0.046,85174.0,85171.0,0.01174108]
[1745113964577,0.11944791,85173.0,85171.0,0.01174108]
[1745113964809,0.15588792,85173.0,85171.0,0.01174108]
[1745113965064,0.15688792,85173.0,85171.0,0.01174108]
[1745113965247,0.15688792,85173.0,85172.0,0.23481895]
[1745113967297,0.15688792,85173.0,85170.0,0.23482446]
[1745113967525,0.15688792,85173.0,85170.0,0.24656568]
[1745113967763,0.15688792,85173.0,85170.0,0.01174122]
[1745113967955,0.15688792,85173.0,85171.0,0.23482046]
[1745113969350,0.15588792,85173.0,85171.0,0.23482046]
[1745113980802,0.15588792,85173.0,85172.0,0.34]
[1745113981221,0.11944791,85173.0,85172.0,0.34]
[1745113989005,0.15586083,85173.0,85172.0,0.34]
[1745113994406,0.11944791,85173.0,85172.0,0.34]
[1745113994742,0.24653222,85182.0,85178.0,0.01174012]
[1745113994965,0.23476927,85191.0,85179.0,0.23479802]
[1745113994966,0.11944791,85181.0,85179.0,0.23479802]
[1745113995161,0.15589136,85181.0,85179.0,0.23479802]
[1745113996356,0.24653674,85180.0,85175.0,0.24655064]
[1745113996622,0.2348036,85178.0,85176.0,0.34]
[1745113996850,0.01174149,85168.0,85165.0,0.34]
[1745113997061,0.11944791,85167.0,85165.0,0.34]
[1745113997268,0.01174232,85162.0,85159.0,0.01174274]
[1745113997478,0.0488,85167.0,85164.0,0.35174205]
[1745113997702,0.15593138,85166.0,85165.0,0.23483585]
[1745114004589,0.15593138,85166.0,85164.0,0.58658092]
[1745114004767,0.15593138,85166.0,85165.0,0.23483825]
[1745114006161,0.23483825,85165.0,85163.0,0.01200767]
[1745114006337,0.11944791,85164.0,85163.0,0.01200767]
[1745114006540,0.11944791,85164.0,85159.0,0.01174274]
[1745114006541,0.40246909,85164.0,85159.0,0.35174274]
[1745114006754,0.01174218,85163.0,85159.0,0.35174274]
[1745114006959,0.11944791,85162.0,85159.0,0.35174274]
[1745114007402,0.03643637,85161.0,85159.0,0.35174274]
[1745114007711,0.11944791,85160.0,85159.0,0.35174274]
[1745114007918,0.11944791,85160.0,85159.0,0.36366292]
[1745114008345,0.15588428,85160.0,85159.0,0.36366292]
[1745114008651,0.11944791,85160.0,85159.0,0.36366292]
[1745114008862,0.15588428,85160.0,85159.0,0.36366292]
[1745114029593,0.11944791,85160.0,85159.0,0.36366292]
[1745114032160,0.15588527,85160.0,85159.0,0.36366292]
[1745114032781,0.11944791,85160.0,85159.0,0.36366292]
[1745114033420,0.15588527,85160.0,85159.0,0.36366292]
[1745114033591,0.11944791,85160.0,85159.0,0.36366292]
[1745114042994,0.01174136,85169.0,85164.0,0.01174205]
[1745114043206,0.11944791,85168.0,85165.0,0.01174191]
[1745114043427,0.15584587,85168.0,85165.0,0.01174191]
[1745114043680,0.15584587,85168.0,85165.0,0.24657887]
[1745114047054,0.15584587,85168.0,85165.0,0.01174191]
[1745114048769,0.40241751,85168.0,85165.0,0.01174191]
[1745114052496,0.01174191,85165.0,85161.0,0.01174246]
[1745114052700,0.36603127,85164.0,85160.0,0.23485204]
[1745114052903,0.40243846,85164.0,85161.0,0.01174246]
[1745114053102,0.1558551,85164.0,85162.0,0.23484652]
[1745114060540,0.03640719,85164.0,85163.0,0.34]
[1745114060772,0.01174094,85172.0,85167.0,0.24657206]
[1745114060773,0.01174122,85170.0,85167.0,0.24657206]
[1745114060992,0.11944791,85169.0,85167.0,0.24657206]
[1745114061195,0.15585042,85169.0,85167.0,0.24657206]
[1745114069599,0.11944791,85169.0,85167.0,0.24657206]
[1745114075627,0.11944791,85169.0,85167.0,0.01174163]
[1745114075854,0.11944791,85169.0,85167.0,0.24657262]
[1745114076079,0.03642997,85168.0,85167.0,0.24657262]
[1745114076287,0.15587788,85168.0,85167.0,0.24657262]
[1745114079937,0.15587788,85168.0,85167.0,0.01174163]
[1745114084355,0.15587788,85168.0,85164.0,0.01174205]
[1745114084562,0.11944791,85167.0,85165.0,0.35174191]
[1745114085200,0.03642997,85166.0,85165.0,0.35174191]
[1745114085432,0.15587788,85166.0,85165.0,0.35174191]
[1745114086253,0.15587788,85166.0,85165.0,0.58657853]
[1745114086653,0.15587788,85166.0,85165.0,0.35174191]
[1745114090375,0.15587788,85166.0,85150.0,0.11325446]
[1745114090587,0.11944791,85165.0,85164.0,0.24658145]
[1745114090935,0.15586538,85165.0,85164.0,0.01174205]
[1745114094266,0.15586538,85165.0,85162.0,0.35174232]
[1745114096387,0.16760729,85165.0,85161.0,0.01174246]
[1745114096591,0.15586538,85165.0,85161.0,0.01174246]
[1745114101449,0.15586538,85165.0,85162.0,0.01174232]
[1745114106251,0.16760729,85165.0,85161.0,0.01174246]
[1745114113043,0.15586538,85165.0,85162.0,0.35174232]
[1745114113895,0.15586538,85165.0,85164.0,0.34]
[1745114115233,0.16760729,85165.0,85162.0,0.35174232]
[1745114116133,0.15586538,85165.0,85162.0,0.35174232]
[1745114118702,0.15586538,85165.0,85162.0,0.56310285]
[1745114119698,0.15586538,85165.0,85163.0,0.21135809]
[1745114119915,0.15586538,85165.0,85164.0,0.34]
[1745114122004,0.15586538,85165.0,85162.0,0.22310285]
[1745114126720,0.15586538,85165.0,85163.0,0.34]
[1745114134439,0.40244684,85165.0,85162.0,0.34]
[1745114135473,0.16760729,85165.0,85162.0,0.35174232]
[1745114137007,0.24658306,85164.0,85161.0,0.01174246]
[1745114137219,0.11944791,85163.0,85160.0,0.0117426]
[1745114137436,0.16202098,85163.0,85160.0,0.22310719]
[1745114138596,0.16202098,85163.0,85160.0,0.0117426]
[1745114140267,0.16202098,85163.0,85162.0,0.34]
[1745114142615,0.04257307,85163.0,85162.0,0.341]
[1745114143031,0.24656443,85171.0,85166.0,0.01174177]
[1745114143265,0.11944791,85170.0,85168.0,0.01174149]
[1745114144298,0.0453,85169.0,85164.0,0.35174205]
[1745114144423,0.36602167,85168.0,85164.0,0.34]
[1745114144653,0.1311894,85168.0,85164.0,0.35174205]
[1745114145067,0.11944791,85168.0,85165.0,0.22309474]
[1745114149801,0.0425514,85167.0,85165.0,0.22309474]
[1745114150051,0.11944791,85166.0,85165.0,0.56309474]
[1745114150707,0.16199931,85166.0,85165.0,0.56309474]
[1745114157417,0.16199931,85166.0,85165.0,0.34]
[1745114181699,0.11944791,85166.0,85165.0,0.34]
[1745114184099,0.28110769,85177.0,85170.0,0.01174122]
[1745114184100,0.01174067,85174.0,85170.0,0.01174122]
[1745114184319,0.16201341,85173.0,85170.0,0.01174122]
[1745114185368,0.16201341,85173.0,85170.0,0.22308294]
[1745114188749,0.40857213,85173.0,85168.0,0.22308716]
[1745114190992,0.23482246,85171.0,85168.0,0.01174149]
[1745114191211,0.11944791,85170.0,85168.0,0.01174149]
[1745114191422,0.1620296,85170.0,85168.0,0.01174149]
[1745114192062,0.24656858,85169.0,85165.0,0.35174191]
[1745114192271,0.23483274,85167.0,85165.0,0.34]
[1745114192501,0.11944791,85166.0,85165.0,0.34]
[1745114192735,0.1620296,85166.0,85165.0,0.34]
[1745114194730,0.1620296,85166.0,85165.0,0.55135442]
[1745114199279,0.11944791,85166.0,85165.0,0.55135442]
[1745114200846,0.24654881,85176.0,85172.0,0.01174094]
[1745114201052,0.17376806,85174.0,85169.0,0.01174136]
[1745114202243,0.23481832,85173.0,85169.0,0.22308492]
[1745114202444,0.23481832,85173.0,85169.0,0.01174136]
[1745114202445,0.11944791,85172.0,85169.0,0.01174136]
[1745114202567,0.13118885,85172.0,85169.0,0.01174136]
[1745114202813,0.04257948,85171.0,85169.0,0.01174136]
[1745114203193,0.11944791,85170.0,85169.0,0.01174136]
[1745114203837,0.16202739,85170.0,85169.0,0.01174136]
[1745114209557,0.16202739,85170.0,85167.0,0.21134824]
[1745114209766,0.16202739,85170.0,85167.0,0.22308987]
[1745114216421,0.16202739,85170.0,85169.0,0.34]
[1745114217494,0.16202739,85170.0,85168.0,0.34]
[1745114219334,0.16202739,85170.0,85168.0,0.55134586]
[1745114227031,0.11944791,85170.0,85168.0,0.55134586]
[1745114230991,0.24653475,85181.0,85168.0,0.55134586]
[1745114230992,0.23479277,85182.0,85178.0,0.01174012]
[1745114231339,0.4085727,85181.0,85178.0,0.01174012]
[1745114231973,0.17377669,85181.0,85178.0,0.01174012]
[1745114232152,0.17377669,85181.0,85178.0,0.22306076]
[1745114232153,0.16203699,85181.0,85178.0,0.22306076]
[1745114232309,0.16217261,85181.0,85178.0,0.22306076]
[1745114232493,0.16217261,85181.0,85178.0,0.01174012]
[1745114236651,0.40870781,85181.0,85178.0,0.01174012]
[1745114237589,0.01173984,85180.0,85177.0,0.22306391]
[1745114237806,0.11944791,85179.0,85175.0,0.2230693]
[1745114238018,0.16206531,85179.0,85176.0,0.01174039]
[1745114238924,0.01174025,85177.0,85170.0,0.35174122]
[1745114239145,0.2348183,85173.0,85170.0,0.34]
[1745114239354,0.35426902,85172.0,85170.0,0.34]
[1745114239556,0.39688549,85172.0,85170.0,0.34]
[1745114240312,0.24656666,85170.0,85167.0,0.01174163]
[1745114240538,0.11944791,85169.0,85167.0,0.01174163]
[1745114240712,0.04261647,85168.0,85167.0,0.01174163]
[1745114240895,0.16206438,85168.0,85167.0,0.01174163]
[1745114247181,0.445897,85168.0,85163.0,0.34]
[1745114247405,0.23484052,85165.0,85163.0,0.34]
[1745114247609,0.23484052,85165.0,85159.0,0.01148434]
[1745114247610,0.23485194,85161.0,85159.0,0.01148434]
[1745114247732,0.11944791,85160.0,85159.0,0.35148434]
[1745114247935,0.16206438,85160.0,85159.0,0.34]
[1745114248413,0.16206438,85160.0,85159.0,0.35402417]
[1745114248637,0.21186438,85160.0,85159.0,0.35402417]
[1745114249421,0.21186438,85160.0,85159.0,0.01402417]
[1745114249656,0.01174301,85157.0,85154.0,0.01174342]
[1745114249851,0.11944791,85156.0,85154.0,0.01174342]
[1745114250051,0.16203169,85156.0,85154.0,0.01174342]
[1745114250367,0.16203169,85156.0,85154.0,0.02551812]
[1745114250580,0.16203169,85156.0,85154.0,0.01174342]
[1745114251344,0.17377484,85156.0,85153.0,0.34]
[1745114252767,0.40863957,85156.0,85153.0,0.34]
[1745114252999,0.01174329,85155.0,85153.0,0.01381839]
[1745114253237,0.11944791,85155.0,85152.0,0.3517437]
[1745114253726,0.04258378,85154.0,85153.0,0.21138421]
[1745114256398,0.04258378,85154.0,85152.0,0.3517437]
[1745114256615,0.04258378,85154.0,85153.0,0.01387268]
[1745114256845,0.04258378,85154.0,85152.0,0.3517437]
[1745114257714,0.04258378,85154.0,85152.0,0.56312857]
[1745114257926,0.04258378,85154.0,85152.0,0.57751719]
[1745114262237,0.11944791,85155.0,85154.0,0.55138173]
[1745114265419,0.1620038,85155.0,85154.0,0.55138173]
[1745114266721,0.11944791,85155.0,85154.0,0.55138173]
[1745114268949,0.1620038,85155.0,85154.0,0.55138173]
[1745114270374,0.11944791,85155.0,85154.0,0.55138173]
[1745114272638,0.1620038,85155.0,85154.0,0.55138173]
[1745114274129,0.11944791,85155.0,85154.0,0.55138173]
[1745114274319,0.1620038,85155.0,85154.0,0.55138173]
[1745114276394,0.11944791,85155.0,85154.0,0.55138173]
[1745114278640,0.1620038,85155.0,85154.0,0.55138173]
[1745114284669,0.11944791,85155.0,85154.0,0.55138173]
[1745114288119,0.0485,85167.0,85166.0,0.55135194]
[1745114288344,0.048,85173.0,85168.0,0.21134698]
[1745114288587,0.11944791,85169.0,85168.0,0.21134698]
[1745114290064,0.11944791,85169.0,85167.0,0.01174163]
[1745114292835,0.11944791,85169.0,85166.0,0.34]
[1745114293056,0.11944791,85169.0,85166.0,0.35174177]
[1745114293457,0.11944791,85169.0,85166.0,0.56309236]
[1745114294254,0.0481,85168.0,85166.0,0.56309236]
[1745114294554,0.16754791,85168.0,85166.0,0.56309236]
[1745114298431,0.16754791,85168.0,85166.0,0.35174177]
[1745114299969,0.03547497,85167.0,85166.0,0.35174177]
[1745114303229,0.03547497,85167.0,85166.0,0.34]
[1745114304492,0.03547497,85167.0,85166.0,0.55135194]
[1745114309701,0.03547497,85167.0,85166.0,0.34]
[1745114311003,0.03547497,85167.0,85166.0,0.55135194]
[1745114313355,0.03547497,85167.0,85166.0,0.34]
[1745114314293,0.15492288,85167.0,85166.0,0.34]
[1745114316115,0.11944791,85167.0,85166.0,0.34]
[1745114316879,0.15492072,85167.0,85166.0,0.34]
[1745114331391,0.11944791,85167.0,85166.0,0.34]
[1745114332934,0.29494063,85179.0,85175.0,0.01174053]
[1745114333142,0.11944791,85177.0,85175.0,0.22306846]
[1745114333326,0.15493051,85177.0,85175.0,0.22306846]
[1745114337419,0.01174039,85176.0,85173.0,0.22307374]
[1745114337766,0.15494181,85175.0,85173.0,0.22307374]
[1745114346425,0.15494181,85175.0,85174.0,0.34]
[1745114346872,0.11944791,85175.0,85174.0,0.34]
[1745114352193,0.00013562,85178.0,85177.0,0.55132465]
[1745114365526,0.0357125,85178.0,85177.0,0.55132465]
[1745114365764,0.11958353,85178.0,85177.0,0.34]
[1745114365959,0.15516041,85178.0,85177.0,0.34]
[1745114366584,0.15516041,85178.0,85177.0,0.55132465]
[1745114369897,0.15516041,85178.0,85177.0,0.34]
[1745114371336,0.0357125,85178.0,85177.0,0.3884]
[1745114371505,0.0357125,85178.0,85177.0,0.79826532]
[1745114371704,0.00013562,85178.0,85177.0,0.79826532]
[1745114376396,0.00013562,85178.0,85177.0,0.62070532]
[1745114385065,0.00013562,85178.0,85177.0,0.61970532]
[1745114398576,0.00013562,85178.0,85177.0,0.65189234]
[1745114400244,0.02974562,85184.0,85181.0,0.0117397]
[1745114400486,0.02974562,85184.0,85183.0,0.34]
[1745114403744,0.02974562,85184.0,85183.0,0.61970532]
[1745114405544,0.02974562,85184.0,85183.0,0.65194594]
[1745114406651,0.02104563,85184.0,85183.0,0.65194594]
[1745114408115,0.00028385,85187.0,85186.0,0.21130232]
[1745114408468,0.00028385,85187.0,85186.0,0.49100764]
[1745114411787,0.00028385,85187.0,85186.0,0.83200764]
[1745114416159,0.00028385,85187.0,85186.0,0.83100764]
[1745114417041,0.00028385,85187.0,85186.0,0.96152764]
[1745114418106,0.00028385,85187.0,85186.0,0.99376279]
[1745114435442,0.00028385,85187.0,85186.0,0.86324279]
[1745114435678,0.04748385,85187.0,85186.0,0.61970532]